fUST/lending_fUST_20240822
["ID","MTS","AMOUNT","RATE_DAILY","PERIOD"]
[335524659,1724307038028,-309.48934258,0.00012934,2]
[335524661,1724307038039,-180.81152876,0.00012971,2]
[335524663,1724307038049,-155.37804016,0.00012971,2]
[335524666,1724307038059,-823.0,0.00013309,2]
[335524668,1724307038070,-158.25972281,0.00013688,2]
[335524670,1724307038080,-3000.0,0.00013699,2]
[335524672,1724307038090,-1424.243651,0.00013699,2]
[335524674,1724307038101,-500.0,0.00013699,2]
[335524676,1724307038113,-598.91864359,0.00013699,2]
[335524678,1724307038124,-194.85160042,0.00013699,2]
[335524681,1724307038137,-301.56944091,0.00013971,2]
[335524683,1724307038147,-234.82398039,0.00014,2]
[335524685,1724307038156,-304.099353,0.00014247,2]
[335524687,1724307038166,-401.000626,0.00014247,2]
[335524689,1724307038176,-154.76012181,0.00014519,2]
[335524691,1724307038186,-1152.0,0.0001464,2]
[335524693,1724307038197,-2640.95997503,0.00015,2]
[335524696,1724307038209,-154.74467129,0.00015,2]
[335524698,1724307038220,-782.84735433,0.00015,2]
[335524700,1724307038231,-1111.07542891,0.00015,2]
[335524702,1724307038243,-256.5345481,0.00015,2]
[335524704,1724307038253,-5000.0,0.00015,2]
[335524706,1724307038262,-86506.3817583,0.0001589,2]
[335524708,1724307038272,-352.01863958,0.00015899,2]
[335524710,1724307038282,-500.0,0.00015973,2]
[335524711,1724307038291,-173012.763517,0.0001599,2]
[335524712,1724307038300,-500.0,0.00015999,2]
[335524713,1724307038310,-500.0,0.00015999,2]
[335524714,1724307038319,-301.92993025,0.00015999,2]
[335524715,1724307038330,-500.0,0.00015999,2]
[335524716,1724307038341,-525.07111796,0.00015999,2]
[335524717,1724307038352,-500.0,0.00015999,2]
[335524718,1724307038362,-500.0,0.00015999,2]
[335524719,1724307038372,-500.0,0.00015999,2]
[335524720,1724307038383,-500.0,0.00015999,2]
[335524721,1724307038395,-500.0,0.00015999,2]
[335524722,1724307038407,-500.0,0.00015999,2]
[335524723,1724307038416,-500.0,0.00015999,2]
[335524725,1724307038426,-500.0,0.00015999,2]
[335524727,1724307038435,-500.0,0.00015999,2]
[335524729,1724307038446,-500.0,0.00015999,2]
[335524731,1724307038456,-500.0,0.00015999,2]
[335524733,1724307038466,-500.0,0.00015999,2]
[335524735,1724307038476,-195.68378257,0.00015999,2]
[335524737,1724307038486,-500.0,0.00015999,2]
[335524739,1724307038496,-500.0,0.00015999,2]
[335524741,1724307038505,-500.0,0.00015999,2]
[335524744,1724307038516,-500.0,0.00015999,2]
[335524746,1724307038526,-500.0,0.00015999,2]
[335524748,1724307038537,-100000.0,0.00016,2]
[335524750,1724307038547,-154.80182109,0.00016,2]
[335524752,1724307038559,-1613.0,0.00016103,2]
[335524754,1724307038569,-1000.0,0.00016521,2]
[335524756,1724307038579,-352.01863956,0.00016694,2]
[335524758,1724307038589,-710.05606127,0.0001706,2]
[335524760,1724307038600,-1500.0,0.00017419,2]
[335524762,1724307038610,-5332.25636157,0.00017436,2]
[335524764,1724307038619,-352.01863956,0.00017489,2]
[335524766,1724307038630,-163.960519,0.000175,2]
[335524768,1724307038641,-153.540023,0.000175,2]
[335524771,1724307038651,-2258.0,0.00017714,2]
[335524773,1724307038661,-5332.25636157,0.00017772,2]
[335524775,1724307038671,-86506.3817583,0.00017888,2]
[335524777,1724307038682,-10345.32363826,0.00017898,2]
[335524779,1724307038692,-150.112233,0.000179,2]
[335524781,1724307038702,-150.112235,0.000179,2]
[335524783,1724307038711,-150.112233,0.000179,2]
[335524785,1724307038721,-5332.25636157,0.00017906,2]
[335524787,1724307038731,-477.25280306,0.00017913,2]
[335524789,1724307038741,-150.0,0.00017935,2]
[335524791,1724307038751,-150.112233,0.000182,2]
[335524793,1724307038761,-150.112233,0.000182,2]
[335524795,1724307038771,-409.0504316,0.00018223,2]
[335524797,1724307038781,-409.0504316,0.00018223,2]
[335524799,1724307038791,-409.0504316,0.00018223,2]
[335524801,1724307038802,-352.01863956,0.00018283,2]
[335524803,1724307038812,-5332.25636157,0.00018285,2]
[335524805,1724307038822,-150.112233,0.000183,2]
[335524808,1724307038832,-150.0,0.00018304,2]
[335524810,1724307038843,-5332.25636157,0.00018438,2]
[335524812,1724307038853,-150.112233,0.000185,2]
[335524814,1724307038863,-1344.98922732,0.00018524,2]
[335524816,1724307038873,-150.0,0.00018526,2]
[335524818,1724307038883,-150.112233,0.000186,2]
[335524820,1724307038893,-150.0,0.00018652,2]
[335524822,1724307038904,-5332.25636157,0.00018744,2]
[335524824,1724307038913,-150.112233,0.000188,2]
[335524826,1724307038923,-465.61264015,0.00018809,2]
[335524828,1724307038932,-150.112233,0.000189,2]
[335524830,1724307038942,-151.0,0.00018924,2]
[335524832,1724307038952,-151.0,0.00018924,2]
[335524834,1724307038962,-192.54776,0.00018924,2]
[335524836,1724307038972,-151.0,0.00018924,2]
[335524838,1724307038982,-86506.3817583,0.00018925,2]
[335524840,1724307038991,-88888.0,0.00018935,2]
[335524842,1724307039001,-336.96351403,0.00019,2]
[335524844,1724307039011,-150.112233,0.00019,2]
[335524846,1724307039020,-409.0504316,0.00019044,2]
[335524848,1724307039031,-409.12482,0.00019044,2]
[335524850,1724307039041,-5332.25636157,0.00019062,2]
[335524853,1724307039051,-155.001337,0.00019078,2]
[335524855,1724307039060,-199.528847,0.00019078,2]
[335524857,1724307039069,-151.0,0.00019078,2]
[335524859,1724307039078,-153.684269,0.00019078,2]
[335524861,1724307039088,-151.0,0.00019078,2]
[335524863,1724307039099,-151.0,0.00019078,2]
[335524865,1724307039110,-151.0,0.00019078,2]
[335524867,1724307039120,-151.0,0.00019078,2]
[335524869,1724307039129,-151.0,0.00019078,2]
[335524871,1724307039138,-151.0,0.00019078,2]
[335524873,1724307039148,-151.0,0.00019078,2]
[335524875,1724307039162,-151.0,0.00019078,2]
[335524878,1724307039175,-151.0,0.00019078,2]
[335524880,1724307039190,-151.0,0.00019078,2]
[335524883,1724307039205,-210.775377,0.00019078,2]
[335524885,1724307039218,-210.775377,0.00019078,2]
[335524888,1724307039233,-175.989862,0.00019078,2]
[335524890,1724307039246,-175.989862,0.00019078,2]
[335524893,1724307039260,-151.0,0.00019078,2]
[335524896,1724307039275,-151.0,0.00019078,2]
[335524898,1724307039288,-151.0,0.00019078,2]
[335524900,1724307039301,-352.01863956,0.00019078,2]
[335524903,1724307039316,-192.54776,0.00019078,2]
[335524905,1724307039329,-40000.0,0.00019078,2]
[335524908,1724307039344,-150.0,0.00019139,2]
[335524910,1724307039357,-458.759137,0.00019168,2]
[335524913,1724307039372,-458.759137,0.00019168,2]
[335524915,1724307039384,-151.0,0.00019168,2]
[335524918,1724307039399,-230.13462078,0.00019178,2]
[335524920,1724307039410,-501.86506517,0.00019178,2]
[335524922,1724307039423,-500.0,0.00019178,2]
[335524925,1724307039435,-500.0,0.00019178,2]
[335524927,1724307039447,-500.0,0.00019178,2]
[335524929,1724307039461,-500.0,0.00019178,2]
[335524932,1724307039474,-500.0,0.00019178,2]
[335524934,1724307039486,-500.0,0.00019178,2]
[335524936,1724307039498,-500.0,0.00019178,2]
[335524938,1724307039510,-500.0,0.00019178,2]
[335524941,1724307039523,-500.0,0.00019178,2]
[335524943,1724307039536,-271.874358,0.00019178,2]
[335524946,1724307039550,-500.0,0.00019178,2]
[335524948,1724307039566,-500.0,0.00019178,2]
[335524951,1724307039578,-500.0,0.00019178,2]
[335524953,1724307039591,-500.0,0.00019178,2]
[335524955,1724307039606,-500.0,0.00019178,2]
[335524958,1724307039621,-500.0,0.00019178,2]
[335524960,1724307039636,-500.0,0.00019178,2]
[335524963,1724307039650,-500.0,0.00019178,2]
[335524965,1724307039662,-500.0,0.00019178,2]
[335524967,1724307039673,-510.06780472,0.00019178,2]
[335524969,1724307039683,-500.0,0.00019178,2]
[335524971,1724307039694,-500.0,0.00019178,2]
[335524973,1724307039705,-500.0,0.00019178,2]
[335524975,1724307039716,-500.0,0.00019178,2]
[335524978,1724307039730,-274.93213999,0.00019178,2]
[335524980,1724307039741,-500.0,0.00019178,2]
[335524982,1724307039753,-500.0,0.00019178,2]
[335524984,1724307039764,-500.0,0.00019178,2]
[335524987,1724307039776,-500.0,0.00019178,2]
[335524989,1724307039788,-500.0,0.00019178,2]
[335524991,1724307039799,-500.0,0.00019178,2]
[335524993,1724307039812,-500.0,0.00019178,2]
[335524996,1724307039824,-500.0,0.00019178,2]
[335524998,1724307039835,-500.0,0.00019178,2]
[335525000,1724307039846,-500.0,0.00019178,2]
[335525002,1724307039857,-528.23278112,0.00019178,2]
[335525004,1724307039869,-500.0,0.00019178,2]
[335525007,1724307039881,-500.0,0.00019178,2]
[335525009,1724307039893,-500.0,0.00019178,2]
[335525011,1724307039905,-501.05269389,0.00019178,2]
[335525013,1724307039917,-500.0,0.00019178,2]
[335525015,1724307039928,-500.0,0.00019178,2]
[335525018,1724307039939,-500.0,0.00019178,2]
[335525020,1724307039951,-500.0,0.00019178,2]
[335525022,1724307039967,-503.46308556,0.00019178,2]
[335525025,1724307039979,-501.59239575,0.00019178,2]
[335525027,1724307039990,-501.12490564,0.00019178,2]
[335525029,1724307040002,-500.0,0.00019178,2]
[335525031,1724307040014,-500.0,0.00019178,2]
[335525034,1724307040025,-500.0,0.00019178,2]
[335525036,1724307040038,-500.0,0.00019178,2]
[335525038,1724307040049,-376.16263395,0.00019178,2]
[335525040,1724307040060,-500.0,0.00019178,2]
[335525042,1724307040071,-500.0,0.00019178,2]
[335525045,1724307040082,-500.0,0.00019178,2]
[335525047,1724307040092,-504.96443047,0.00019178,2]
[335525049,1724307040105,-500.0,0.00019178,2]
[335525051,1724307040116,-501.6779302,0.00019178,2]
[335525053,1724307040128,-500.0,0.00019178,2]
[335525056,1724307040141,-945.59,0.00019178,2]
[335525058,1724307040158,-945.59,0.00019178,2]
[335525060,1724307040170,-945.59,0.00019178,2]
[335525062,1724307040181,-945.59,0.00019178,2]
[335525065,1724307040193,-945.59,0.00019178,2]
[335525067,1724307040206,-945.59,0.00019178,2]
[335525070,1724307040219,-945.59,0.00019178,2]
[335525072,1724307040233,-945.59,0.00019178,2]
[335525074,1724307040245,-945.59,0.00019178,2]
[335525076,1724307040258,-945.59,0.00019178,2]
[335525079,1724307040271,-945.59,0.00019178,2]
[335525081,1724307040283,-945.59,0.00019178,2]
[335525084,1724307040295,-945.59,0.00019178,2]
[335525086,1724307040307,-500.0,0.00019178,2]
[335525088,1724307040319,-945.59,0.00019178,2]
[335525090,1724307040331,-945.59,0.00019178,2]
[335525092,1724307040344,-945.59,0.00019178,2]
[335525095,1724307040357,-945.59,0.00019178,2]
[335525097,1724307040368,-945.59,0.00019178,2]
[335525099,1724307040378,-500.0,0.00019178,2]
[335525101,1724307040390,-500.0,0.00019178,2]
[335525103,1724307040400,-159.6566321,0.00019178,2]
[335525106,1724307040411,-500.0,0.00019178,2]
[335525108,1724307040423,-430.00911173,0.00019178,2]
[335525110,1724307040435,-500.0,0.00019178,2]
[335525112,1724307040448,-500.27717184,0.00019178,2]
[335525115,1724307040461,-500.0,0.00019178,2]
[335525117,1724307040474,-500.0,0.00019178,2]
[335525120,1724307040487,-500.0,0.00019178,2]
[335525122,1724307040500,-501.74019901,0.00019178,2]
[335525124,1724307040512,-500.0,0.00019178,2]
[335525126,1724307040523,-500.0,0.00019178,2]
[335525128,1724307040534,-500.0,0.00019178,2]
[335525131,1724307040545,-500.0,0.00019178,2]
[335525133,1724307040557,-500.0,0.00019178,2]
[335525135,1724307040568,-500.0,0.00019178,2]
[335525137,1724307040579,-500.0,0.00019178,2]
[335525139,1724307040590,-500.0,0.00019178,2]
[335525141,1724307040602,-500.0,0.00019178,2]
[335525143,1724307040615,-521.31180394,0.00019178,2]
[335525146,1724307040627,-500.0,0.00019178,2]
[335525148,1724307040640,-195.28439483,0.00019178,2]
[335525150,1724307040653,-502.73480139,0.00019178,2]
[335525153,1724307040666,-500.0,0.00019178,2]
[335525155,1724307040678,-500.0,0.00019178,2]
[335525157,1724307040691,-501.3989261,0.00019178,2]
[335525160,1724307040703,-500.0,0.00019178,2]
[335525162,1724307040714,-502.47828529,0.00019178,2]
[335525164,1724307040725,-500.0,0.00019178,2]
[335525166,1724307040736,-500.0,0.00019178,2]
[335525169,1724307040748,-503.9499618,0.00019178,2]
[335525171,1724307040761,-500.0,0.00019178,2]
[335525173,1724307040774,-500.0,0.00019178,2]
[335525175,1724307040785,-500.0,0.00019178,2]
[335525178,1724307040796,-500.0,0.00019178,2]
[335525180,1724307040808,-613.83479324,0.00019178,2]
[335525182,1724307040821,-500.0,0.00019178,2]
[335525185,1724307040832,-501.78921238,0.00019178,2]
[335525186,1724307040844,-206.03802295,0.00019178,2]
[335525187,1724307040856,-500.0,0.00019178,2]
[335525188,1724307040867,-500.0,0.00019178,2]
[335525189,1724307040880,-486.05924697,0.00019178,2]
[335525190,1724307040892,-500.0,0.00019178,2]
[335525191,1724307040905,-292.66752505,0.00019178,2]
[335525192,1724307040917,-500.0,0.00019178,2]
[335525193,1724307040929,-500.0,0.00019178,2]
[335525194,1724307040940,-500.0,0.00019178,2]
[335525196,1724307040952,-500.0,0.00019178,2]
[335525198,1724307040964,-500.0,0.00019178,2]
[335525201,1724307040975,-500.0,0.00019178,2]
[335525203,1724307040988,-500.9631505,0.00019178,2]
[335525205,1724307040999,-500.0,0.00019178,2]
[335525207,1724307041010,-500.0,0.00019178,2]
[335525210,1724307041024,-500.0,0.00019178,2]
[335525212,1724307041038,-500.0,0.00019178,2]
[335525215,1724307041050,-500.0,0.00019178,2]
[335525217,1724307041063,-500.0,0.00019178,2]
[335525219,1724307041076,-513.01743871,0.00019178,2]
[335525222,1724307041088,-500.0,0.00019178,2]
[335525224,1724307041100,-500.0,0.00019178,2]
[335525226,1724307041112,-741.64,0.00019178,2]
[335525229,1724307041126,-502.88193555,0.00019178,2]
[335525231,1724307041136,-500.0,0.00019178,2]
[335525233,1724307041150,-177.88169536,0.00019178,2]
[335525235,1724307041161,-502.46400918,0.00019178,2]
[335525238,1724307041172,-500.0,0.00019178,2]
[335525240,1724307041185,-500.0,0.00019178,2]
[335525242,1724307041197,-501.97444757,0.00019178,2]
[335525244,1724307041209,-500.0,0.00019178,2]
[335525247,1724307041223,-500.0,0.00019178,2]
[335525249,1724307041235,-209.24378205,0.00019178,2]
[335525251,1724307041246,-502.25285161,0.00019178,2]
[335525254,1724307041257,-500.0,0.00019178,2]
[335525256,1724307041269,-500.0,0.00019178,2]
[335525258,1724307041283,-500.0,0.00019178,2]
[335525261,1724307041295,-500.0,0.00019178,2]
[335525263,1724307041306,-500.0,0.00019178,2]
[335525265,1724307041315,-500.0,0.00019178,2]
[335525267,1724307041327,-500.0,0.00019178,2]
[335525269,1724307041336,-500.0,0.00019178,2]
[335525271,1724307041346,-502.78093537,0.00019178,2]
[335525299,1724307041602,-500.0,0.00019178,2]
[335525301,1724307041613,-500.0,0.00019178,2]
[335525303,1724307041622,-500.0,0.00019178,2]
[335525305,1724307041632,-500.0,0.00019178,2]
[335525307,1724307041642,-500.0,0.00019178,2]
[335525309,1724307041653,-500.0,0.00019178,2]
[335525311,1724307041662,-500.0,0.00019178,2]
[335525313,1724307041672,-503.09759953,0.00019178,2]
[335525316,1724307041683,-500.0,0.00019178,2]
[335525318,1724307041694,-500.0,0.00019178,2]
[335525320,1724307041704,-500.0,0.00019178,2]
[335525322,1724307041713,-500.0,0.00019178,2]
[335525324,1724307041722,-500.0,0.00019178,2]
[335525326,1724307041732,-500.0,0.00019178,2]
[335525328,1724307041743,-500.0,0.00019178,2]
[335525330,1724307041753,-500.0,0.00019178,2]
[335525332,1724307041762,-500.0,0.00019178,2]
[335525334,1724307041772,-500.0,0.00019178,2]
[335525336,1724307041781,-500.0,0.00019178,2]
[335525338,1724307041793,-205.83898088,0.00019178,2]
[335525340,1724307041803,-500.0,0.00019178,2]
[335525342,1724307041812,-500.0,0.00019178,2]
[335525344,1724307041822,-500.0,0.00019178,2]
[335525346,1724307041832,-154.747342,0.00019178,2]
[335525348,1724307041842,-500.0,0.00019178,2]
[335525350,1724307041853,-500.0,0.00019178,2]
[335525352,1724307041862,-500.0,0.00019178,2]
[335525354,1724307041872,-518.40384036,0.00019178,2]
[335525356,1724307041882,-2625.92,0.00019178,2]
[335525358,1724307041892,-500.0,0.00019178,2]
[335525360,1724307041903,-500.0,0.00019178,2]
[335525363,1724307041913,-500.0,0.00019178,2]
[335525365,1724307041923,-503.72,0.00019178,2]
[335525367,1724307041933,-500.0,0.00019178,2]
[335525369,1724307041943,-500.0,0.00019178,2]
[335525371,1724307041954,-500.0,0.00019178,2]
[335525373,1724307041964,-500.0,0.00019178,2]
[335525375,1724307041974,-500.0,0.00019178,2]
[335525377,1724307041987,-500.0,0.00019178,2]
[335525380,1724307041999,-500.0,0.00019178,2]
[335525382,1724307042009,-1005.47,0.00019178,2]
[335525384,1724307042020,-500.0,0.00019178,2]
[335525386,1724307042031,-500.0,0.00019178,2]
[335525388,1724307042042,-500.0,0.00019178,2]
[335525391,1724307042054,-280.20519879,0.00019178,2]
[335525393,1724307042066,-503.76751645,0.00019178,2]
[335525395,1724307042078,-500.0,0.00019178,2]
[335525397,1724307042088,-500.0,0.00019178,2]
[335525400,1724307042100,-500.0,0.00019178,2]
[335525402,1724307042111,-500.0,0.00019178,2]
[335525404,1724307042122,-500.0,0.00019178,2]
[335525406,1724307042134,-626.51,0.00019178,2]
[335525408,1724307042145,-500.0,0.00019178,2]
[335525410,1724307042156,-500.0,0.00019178,2]
[335525412,1724307042167,-502.88,0.00019178,2]
[335525415,1724307042178,-512.70363378,0.00019178,2]
[335525417,1724307042188,-500.0,0.00019178,2]
[335525419,1724307042198,-150.3948424,0.00019178,2]
[335525421,1724307042207,-500.0,0.00019178,2]
[335525423,1724307042217,-500.0,0.00019178,2]
[335525425,1724307042227,-151.0,0.00019178,2]
[335525427,1724307042235,-151.0,0.00019178,2]
[335525429,1724307042245,-500.0,0.00019178,2]
[335525431,1724307042254,-151.0,0.00019178,2]
[335525433,1724307042263,-151.0,0.00019178,2]
[335525435,1724307042272,-500.0,0.00019178,2]
[335525436,1724307042281,-775.24,0.00019178,2]
[335525438,1724307042291,-500.0,0.00019178,2]
[335525440,1724307042300,-500.0,0.00019178,2]
[335525442,1724307042309,-500.0,0.00019178,2]
[335525444,1724307042319,-500.0,0.00019178,2]
[335525446,1724307042328,-500.0,0.00019178,2]
[335525448,1724307042337,-514.33,0.00019178,2]
[335525450,1724307042349,-500.0,0.00019178,2]
[335525452,1724307042359,-781.35,0.00019178,2]
[335525454,1724307042371,-519.98858512,0.00019178,2]
[335525458,1724307042383,-500.0,0.00019178,2]
[335525462,1724307042395,-619.39,0.00019178,2]
[335525466,1724307042404,-1115.19,0.00019178,2]
[335525470,1724307042414,-500.0,0.00019178,2]
[335525472,1724307042423,-500.0,0.00019178,2]
[335525474,1724307042432,-500.0,0.00019178,2]
[335525476,1724307042443,-874.04,0.00019178,2]
[335525478,1724307042455,-500.0,0.00019178,2]
[335525481,1724307042467,-500.0,0.00019178,2]
[335525483,1724307042478,-501.92554284,0.00019178,2]
[335525485,1724307042487,-173.425503,0.00019178,2]
[335525486,1724307042496,-500.0,0.00019178,2]
[335525488,1724307042505,-500.0,0.00019178,2]
[335525491,1724307042515,-500.0,0.00019178,2]
[335525494,1724307042525,-500.0,0.00019178,2]
[335525499,1724307042536,-642.39,0.00019178,2]
[335525503,1724307042546,-642.39,0.00019178,2]
[335525506,1724307042557,-642.39,0.00019178,2]
[335525510,1724307042570,-642.39,0.00019178,2]
[335525513,1724307042579,-642.39,0.00019178,2]
[335525515,1724307042589,-500.95745786,0.00019178,2]
[335525517,1724307042598,-642.39,0.00019178,2]
[335525519,1724307042608,-500.0,0.00019178,2]
[335525521,1724307042617,-642.39,0.00019178,2]
[335525523,1724307042626,-642.39,0.00019178,2]
[335525525,1724307042637,-642.39,0.00019178,2]
[335525527,1724307042647,-642.39,0.00019178,2]
[335525529,1724307042657,-642.39,0.00019178,2]
[335525531,1724307042666,-642.39,0.00019178,2]
[335525533,1724307042675,-642.39,0.00019178,2]
[335525535,1724307042684,-500.0,0.00019178,2]
[335525537,1724307042693,-642.39,0.00019178,2]
[335525539,1724307042702,-642.39,0.00019178,2]
[335525541,1724307042711,-500.0,0.00019178,2]
[335525543,1724307042720,-642.39,0.00019178,2]
[335525545,1724307042730,-500.0,0.00019178,2]
[335525547,1724307042739,-642.39,0.00019178,2]
[335525549,1724307042749,-642.39,0.00019178,2]
[335525551,1724307042759,-500.0,0.00019178,2]
[335525553,1724307042768,-151.0,0.00019178,2]
[335525555,1724307042778,-500.0,0.00019178,2]
[335525557,1724307042786,-151.0,0.00019178,2]
[335525559,1724307042796,-151.0,0.00019178,2]
[335525561,1724307042805,-500.0,0.00019178,2]
[335525563,1724307042814,-151.0,0.00019178,2]
[335525565,1724307042824,-200.0,0.00019178,2]
[335525568,1724307042833,-151.0,0.00019178,2]
[335525570,1724307042842,-151.0,0.00019178,2]
[335525572,1724307042852,-298.344351,0.00019178,2]
[335525574,1724307042861,-2127.4,0.00019178,2]
[335525576,1724307042871,-500.0,0.00019178,2]
[335525578,1724307042882,-500.0,0.00019178,2]
[335525580,1724307042891,-500.0,0.00019178,2]
[335525582,1724307042900,-500.0,0.00019178,2]
[335525584,1724307042909,-519.3117229,0.00019178,2]
[335525586,1724307042919,-500.0,0.00019178,2]
[335525587,1724307042928,-500.0,0.00019178,2]
[335525589,1724307042937,-571.18,0.00019178,2]
[335525591,1724307042946,-521.15,0.00019178,2]
[335525593,1724307042956,-500.0,0.00019178,2]
[335525595,1724307042966,-500.0,0.00019178,2]
[335525597,1724307042978,-500.0,0.00019178,2]
[335525600,1724307042989,-610.81143768,0.00019178,2]
[335525601,1724307042999,-511.03395608,0.00019178,2]
[335525603,1724307043008,-500.0,0.00019178,2]
[335525605,1724307043017,-620.05,0.00019178,2]
[335525607,1724307043026,-500.0,0.00019178,2]
[335525610,1724307043038,-582.5,0.00019178,2]
[335525612,1724307043048,-500.0,0.00019178,2]
[335525614,1724307043059,-500.0,0.00019178,2]
[335525616,1724307043068,-500.0,0.00019178,2]
[335525618,1724307043077,-500.0,0.00019178,2]
[335525620,1724307043086,-500.0,0.00019178,2]
[335525622,1724307043096,-155.311346,0.00019178,2]
[335525624,1724307043105,-500.0,0.00019178,2]
[335525626,1724307043117,-500.0,0.00019178,2]
[335525628,1724307043128,-707.99,0.00019178,2]
[335525630,1724307043139,-153.17757,0.00019178,2]
[335525632,1724307043152,-151.0,0.00019178,2]
[335525634,1724307043161,-151.0,0.00019178,2]
[335525635,1724307043171,-151.0,0.00019178,2]
[335525636,1724307043180,-151.0,0.00019178,2]
[335525637,1724307043191,-500.0,0.00019178,2]
[335525638,1724307043201,-500.0,0.00019178,2]
[335525639,1724307043212,-500.0,0.00019178,2]
[335525640,1724307043221,-500.0,0.00019178,2]
[335525641,1724307043231,-500.0,0.00019178,2]
[335525642,1724307043242,-500.0,0.00019178,2]
[335525644,1724307043252,-500.0,0.00019178,2]
[335525647,1724307043262,-828.03,0.00019178,2]
[335525650,1724307043272,-1825.01,0.00019178,2]
[335525653,1724307043284,-500.0,0.00019178,2]
[335525657,1724307043294,-500.0,0.00019178,2]
[335525660,1724307043304,-500.0,0.00019178,2]
[335525663,1724307043314,-500.0,0.00019178,2]
[335525666,1724307043324,-513.56,0.00019178,2]
[335525669,1724307043334,-953.68,0.00019178,2]
[335525673,1724307043346,-500.0,0.00019178,2]
[335525676,1724307043356,-1021.77,0.00019178,2]
[335525679,1724307043366,-500.0,0.00019178,2]
[335525682,1724307043376,-500.0,0.00019178,2]
[335525685,1724307043387,-500.0,0.00019178,2]
[335525688,1724307043398,-544.17,0.00019178,2]
[335525690,1724307043418,-500.0,0.00019178,2]
[335525693,1724307043428,-151.0,0.00019178,2]
[335525695,1724307043438,-500.0,0.00019178,2]
[335525697,1724307043450,-151.0,0.00019178,2]
[335525699,1724307043460,-168.626599,0.00019178,2]
[335525701,1724307043470,-500.0,0.00019178,2]
[335525703,1724307043479,-500.0,0.00019178,2]
[335525705,1724307043489,-505.56054822,0.00019178,2]
[335525707,1724307043499,-500.0,0.00019178,2]
[335525709,1724307043509,-500.0,0.00019178,2]
[335525711,1724307043519,-496.60609051,0.00019178,2]
[335525713,1724307043529,-500.0,0.00019178,2]
[335525716,1724307043540,-500.0,0.00019178,2]
[335525718,1724307043551,-500.0,0.00019178,2]
[335525720,1724307043566,-500.0,0.00019178,2]
[335525722,1724307043576,-500.0,0.00019178,2]
[335525724,1724307043585,-500.0,0.00019178,2]
[335525726,1724307043594,-505.69,0.00019178,2]
[335525728,1724307043604,-500.0,0.00019178,2]
[335525730,1724307043613,-500.0,0.00019178,2]
[335525732,1724307043623,-500.0,0.00019178,2]
[335525734,1724307043636,-500.0,0.00019178,2]
[335525736,1724307043648,-500.0,0.00019178,2]
[335525738,1724307043662,-500.0,0.00019178,2]
[335525741,1724307043673,-702.98,0.00019178,2]
[335525743,1724307043684,-2392.09,0.00019178,2]
[335525745,1724307043695,-500.0,0.00019178,2]
[335525747,1724307043704,-500.0,0.00019178,2]
[335525749,1724307043714,-257.603894,0.00019178,2]
[335525751,1724307043724,-500.0,0.00019178,2]
[335525753,1724307043734,-500.0,0.00019178,2]